bitfinex/quotes_ETHUSD_20250517
["timestamp","ask_amount","ask_price","bid_price","bid_amount"]
[1747517472510,14.48,2486.6,2486.2,4.02220255]
[1747517472787,21.99,2486.6,2486.3,0.8298]
[1747517472991,21.99,2486.6,2486.4,0.2242133]
[1747517473491,4.0212321,2486.8,2486.5,0.55]
[1747517473786,4.02124041,2486.8,2486.5,0.55]
[1747517474580,4.02124041,2486.8,2486.6,0.38258309]
[1747517475097,12.30464467,2486.9,2486.6,0.38258309]
[1747517475296,8.2835,2486.9,2486.6,0.38258309]
[1747517475473,0.7735,2486.9,2486.6,0.38258309]
[1747517475670,4.79459861,2486.9,2486.6,0.38258309]
[1747517475867,4.02109861,2486.9,2486.7,0.38258309]
[1747517476709,19.03699719,2487.0,2486.7,0.38258309]
[1747517476915,15.016,2487.0,2486.7,0.38258309]
[1747517477118,4.02108686,2486.9,2486.7,0.38258309]
[1747517477295,4.02108686,2486.9,2486.8,0.38258309]
[1747517483341,19.0369835,2487.0,2486.8,0.38258309]
[1747517483497,4.0210704,2486.9,2486.8,0.38258309]
[1747517484833,7.51,2487.0,2486.8,0.38258309]
[1747517485033,11.53099804,2487.0,2486.8,0.38258309]
[1747517485225,7.51,2487.0,2486.8,0.95651619]
[1747517486020,7.51,2487.0,2486.9,0.38258309]
[1747517486220,11.53090872,2487.0,2486.9,0.38258309]
[1747517486411,7.51,2487.0,2486.9,0.38258309]
[1747517487863,0.7981,2487.6,2487.1,4.0206098]
[1747517488006,4.8180416,2487.6,2487.2,4.02056944]
[1747517488206,4.8180416,2487.6,2487.3,0.55]
[1747517488455,4.0199416,2487.6,2487.3,0.55]
[1747517488639,4.0199416,2487.6,2487.2,0.55]
[1747517488949,4.01980856,2487.7,2487.3,0.38258309]
[1747517489154,4.0199501,2487.6,2487.3,0.38258309]
[1747517489377,4.01983237,2487.7,2487.3,0.38258309]
[1747517489589,4.01983237,2487.7,2487.4,0.7852]
[1747517491267,4.01976079,2487.8,2487.4,0.7852]
[1747517491481,4.01988993,2487.7,2487.4,0.7852]
[1747517491780,4.01962003,2487.8,2487.4,1.4202817]
[1747517492175,4.01983294,2487.7,2487.4,1.4202817]
[1747517492740,4.01969024,2487.8,2487.5,0.55]
[1747517493285,4.01969024,2487.8,2487.6,0.38040078]
[1747517493590,19.02146697,2487.9,2487.6,0.38040078]
[1747517493894,11.52146697,2487.9,2487.6,1.01748312]
[1747517494973,11.52146697,2487.9,2487.7,0.38040078]
[1747517495965,11.52153609,2487.9,2487.7,0.38040078]
[1747517496164,11.52153775,2487.9,2487.7,0.38040078]
[1747517497961,11.52153775,2487.9,2487.7,1.17730078]
[1747517500692,11.42153775,2487.9,2487.7,1.17730078]
[1747517501483,7.402,2487.9,2487.7,1.17730078]
[1747517502086,11.42154256,2487.9,2487.7,1.17730078]
[1747517504305,11.51794603,2488.3,2487.8,4.56951532]
[1747517504454,4.0190335,2488.2,2487.9,0.97665558]
[1747517506388,4.0190335,2488.2,2487.9,1.80935558]
[1747517507088,25.9917188,2488.4,2488.0,0.55]
[1747517507265,4.01883308,2488.3,2488.0,0.55]
[1747517508584,4.01856929,2488.5,2488.0,4.56920609]
[1747517508789,4.01873472,2488.4,2488.2,0.55]
[1747517508979,4.01873472,2488.4,2488.3,0.93040078]
[1747517510092,4.01844333,2488.6,2488.4,0.7568]
[1747517510291,4.01848503,2488.5,2488.4,0.7568]
[1747517510857,4.01864651,2488.4,2488.3,0.93040078]
[1747517511062,4.0185643,2488.5,2488.3,0.93040078]
[1747517511262,4.01836363,2488.6,2488.3,0.93040078]
[1747517511494,4.01861457,2488.5,2488.3,0.93040078]
[1747517511686,4.01864651,2488.4,2488.3,0.93040078]
[1747517511993,4.01857999,2488.5,2488.3,0.93040078]
[1747517512292,4.01864651,2488.4,2488.3,0.93040078]
[1747517512498,4.01856586,2488.5,2488.3,0.93040078]
[1747517512662,4.01864651,2488.4,2488.3,0.93040078]
[1747517512991,4.01850613,2488.5,2488.3,0.93040078]
[1747517513199,4.01850613,2488.5,2488.3,1.50102725]
[1747517514309,4.01840999,2488.6,2488.3,1.50102725]
[1747517514490,4.01822271,2488.7,2488.3,1.50102725]
[1747517515088,4.01826268,2488.7,2488.4,0.38040078]
[1747517515297,4.01841455,2488.6,2488.4,0.38040078]
[1747517516102,4.01848503,2488.5,2488.4,0.93040078]
[1747517516310,4.01840477,2488.6,2488.4,1.34230351]
[1747517516606,4.01840477,2488.6,2488.5,0.38040078]
[1747517518397,7.493,2488.9,2488.5,1.13720078]
[1747517518398,8.0,2488.9,2488.5,1.13720078]
[1747517518576,4.01818231,2488.7,2488.5,1.13720078]
[1747517519088,4.01818211,2488.7,2488.5,1.13720078]
[1747517519266,4.0180802,2488.8,2488.5,1.13720078]
[1747517519479,4.0180802,2488.8,2488.5,1.7282979]
[1747517519795,4.0180802,2488.8,2488.6,0.38040078]
[1747517520099,4.01816209,2488.7,2488.6,0.38040078]
[1747517523611,4.01805264,2488.8,2488.6,0.38040078]
[1747517525039,4.01805264,2488.8,2488.7,0.38040078]
[1747517525401,4.82145264,2488.8,2488.7,0.38040078]
[1747517528637,4.01805264,2488.8,2488.7,0.38040078]
[1747517530196,4.81715264,2488.8,2488.7,0.38040078]
[1747517531401,19.79915264,2488.8,2488.7,0.38040078]
[1747517533053,11.51000064,2488.8,2488.7,0.38040078]
[1747517534513,11.51000064,2488.8,2488.7,0.85845456]
[1747517534959,11.51000064,2488.8,2488.7,1.08162214]
[1747517535663,12.29460064,2488.8,2488.7,1.08162214]
[1747517535814,12.29460064,2488.8,2488.7,0.85845456]
[1747517536816,14.67474478,2488.8,2488.7,0.85845456]
[1747517537016,22.67474478,2488.8,2488.7,0.85845456]
[1747517537853,22.67474478,2488.8,2488.7,0.38040078]
[1747517538038,30.16374478,2488.8,2488.7,0.38040078]
[1747517538548,32.5920866,2488.8,2488.7,0.38040078]
[1747517541693,12.80260064,2488.8,2488.7,0.38040078]
[1747517541862,27.78260064,2488.8,2488.7,0.38040078]
[1747517542192,4.01839148,2488.6,2488.3,1.24565378]
[1747517542392,3.96850686,2488.5,2488.3,1.24565378]
[1747517542541,3.96850686,2488.5,2488.3,0.47805378]
[1747517543070,3.96850686,2488.5,2488.4,1.08321058]
[1747517543854,4.01839148,2488.6,2488.4,1.08321058]
[1747517544057,4.01839148,2488.6,2488.5,0.22358147]
[1747517544583,4.01839148,2488.6,2488.5,0.6051568]
[1747517547750,4.77699148,2488.6,2488.5,0.6051568]
[1747517548163,4.77699148,2488.6,2488.5,0.38157533]
[1747517551660,12.77699148,2488.6,2488.5,0.38157533]
[1747517551880,15.95451012,2488.6,2488.5,0.38157533]
[1747517553693,4.01864651,2488.4,2488.0,0.47805378]
[1747517553866,4.01913106,2488.1,2488.0,0.47805378]
[1747517554070,11.50713106,2488.1,2488.0,0.47805378]
[1747517554796,12.30643106,2488.1,2488.0,0.47805378]
[1747517555099,20.30643106,2488.1,2488.0,0.47805378]
[1747517555297,23.48767112,2488.1,2488.0,0.85958572]
[1747517556077,25.91601294,2488.1,2488.0,0.85958572]
[1747517557594,4.0201005,2487.5,2487.4,0.47805378]
[1747517557901,4.0201005,2487.5,2487.4,0.70142734]
[1747517558232,3.9045595,2487.5,2487.4,0.70142734]
[1747517558565,3.9045595,2487.5,2487.4,0.47805378]
[1747517558772,3.9045595,2487.5,2487.4,0.85919436]
[1747517558773,4.7038595,2487.5,2487.4,0.85919436]
[1747517560204,4.02078356,2487.1,2486.9,0.47805378]
[1747517560702,4.02067561,2487.2,2486.9,0.47805378]
[1747517561103,4.02080963,2487.1,2486.9,0.47805378]
[1747517561311,4.02080963,2487.1,2487.0,0.38062264]
[1747517562207,18.99880963,2487.1,2487.0,0.38062264]
[1747517564825,4.02112404,2486.9,2486.6,0.47805378]
[1747517565498,4.02123756,2486.8,2486.6,0.47805378]
[1747517566096,4.0211611,2486.9,2486.6,0.47805378]
[1747517566792,4.0211611,2486.9,2486.7,0.38014229]
[1747517567834,4.0212321,2486.8,2486.7,0.38014229]
[1747517572897,18.9988166,2487.1,2486.7,0.38014229]
[1747517573102,4.0210704,2486.9,2486.7,0.38014229]
[1747517573301,4.02117784,2486.9,2486.7,0.38014229]
[1747517574214,14.981,2486.9,2486.8,0.7671]
[1747517574404,7.492,2486.9,2486.8,0.7671]
[1747517576144,7.492,2486.9,2486.8,1.14713654]
[1747517581425,4.02075313,2487.1,2486.8,1.14713654]
[1747517581956,4.02075313,2487.1,2486.9,0.38003654]
[1747517583068,14.977,2487.2,2486.9,0.38003654]
[1747517583289,14.977,2487.2,2486.9,0.8968894]
[1747517583572,14.977,2487.2,2487.0,0.38003654]
[1747517583573,7.489,2487.2,2487.0,0.38003654]
[1747517583864,7.489,2487.2,2487.1,4.84314705]
[1747517584034,7.489,2487.2,2487.1,1.04570461]
[1747517584614,7.489,2487.2,2487.1,1.42574115]
[1747517589661,7.489,2487.2,2487.1,2.06314619]
[1747517592131,7.489,2487.2,2487.1,2.61314619]
[1747517592335,7.489,2487.2,2487.1,3.32822853]
[1747517594067,4.02027076,2487.4,2487.2,0.55]
[1747517594633,4.02027076,2487.4,2487.3,0.38003654]
[1747517594968,4.02027076,2487.4,2487.3,0.60334115]
[1747517595567,4.02011939,2487.5,2487.3,1.08033291]
[1747517595568,4.02017802,2487.5,2487.3,1.08033291]
[1747517596634,4.02017802,2487.5,2487.4,0.22330461]
[1747517597035,4.02017802,2487.5,2487.4,0.60334115]
[1747517598572,4.02017802,2487.5,2487.4,0.38003654]
[1747517600581,4.02017802,2487.5,2487.4,0.60348911]
[1747517601679,4.02017802,2487.5,2487.4,1.08048087]
[1747517604058,4.02017802,2487.5,2487.4,0.60348911]
[1747517606888,4.02017802,2487.5,2487.4,1.08048087]
[1747517610995,11.50417802,2487.5,2487.4,1.08048087]
[1747517611695,11.5041005,2487.5,2487.4,1.08048087]
[1747517612105,11.5041005,2487.5,2487.4,0.60348911]
[1747517615407,7.484,2487.5,2487.4,0.60348911]
[1747517615613,7.484,2487.5,2487.4,1.26049363]
[1747517615910,7.484,2487.5,2487.4,0.60348911]
[1747517616095,4.01994239,2487.6,2487.4,0.60348911]
[1747517616409,18.98594239,2487.6,2487.4,0.60348911]
[1747517616808,18.98594239,2487.6,2487.5,0.38003654]
[1747517616971,18.98594239,2487.6,2487.5,0.60348911]
[1747517617175,14.47,2488.1,2487.5,0.60348911]
[1747517617376,11.50336429,2488.0,2487.6,1.3086]
[1747517617591,18.98536429,2488.0,2487.6,1.53205257]
[1747517617882,4.019632,2487.8,2487.6,0.81668572]
[1747517618097,4.01954417,2487.9,2487.6,0.81668572]
[1747517618324,4.01945415,2487.9,2487.7,0.22345257]
[1747517618524,14.966,2488.0,2487.7,0.22345257]
[1747517618823,14.966,2488.0,2487.8,0.47739215]
[1747517619023,4.01948833,2487.9,2487.8,0.47739215]
[1747517619522,4.01948833,2487.9,2487.8,0.70084472]
[1747517619825,4.01948833,2487.9,2487.8,1.08088126]
[1747517620325,14.966,2488.0,2487.8,1.08088126]
[1747517620681,7.484,2488.0,2487.8,2.47305708]
[1747517621096,7.484,2488.0,2487.9,0.22345257]
[1747517621292,18.98293751,2488.3,2487.9,0.60348911]
[1747517621807,18.98293751,2488.3,2488.0,0.22345257]
[1747517622510,4.80065398,2488.5,2488.0,0.22345257]
[1747517622511,19.50173373,2488.4,2488.0,0.22345257]
[1747517622718,19.50173373,2488.4,2488.1,0.8156]
[1747517623015,19.50173373,2488.4,2488.1,1.19563654]
[1747517623414,7.483,2488.4,2488.2,0.55]
[1747517623786,4.0184354,2488.6,2488.3,0.22345257]
[1747517623982,19.50124844,2488.7,2488.3,0.22345257]
[1747517624184,19.50124844,2488.7,2488.4,0.55]
[1747517624415,4.01834316,2488.6,2488.4,0.55]
[1747517624584,4.01834316,2488.6,2488.4,1.3289]
[1747517624792,4.01834316,2488.6,2488.4,1.70893654]
[1747517624993,19.50125433,2488.7,2488.4,1.70893654]
[1747517625224,11.50125433,2488.7,2488.5,0.21851983]
[1747517625830,11.50125433,2488.7,2488.6,0.38003654]
[1747517629306,4.01785626,2488.9,2488.6,1.14573654]
[1747517629507,4.01751637,2489.1,2488.7,0.55]
[1747517629718,4.01769433,2489.0,2488.7,1.14325126]
[1747517629925,4.01774462,2489.0,2488.7,1.14325126]
[1747517630330,4.0178558,2488.9,2488.7,1.14325126]
[1747517630614,4.0178558,2488.9,2488.7,0.55]
[1747517630938,4.0178558,2488.9,2488.8,0.93003654]
[1747517633338,4.0178558,2488.9,2488.8,0.38003654]
[1747517635152,4.01825275,2488.7,2488.5,0.55]
[1747517636453,4.01832355,2488.6,2488.4,1.24196172]
[1747517636637,4.01832355,2488.6,2488.4,0.47626172]
[1747517637036,4.01848503,2488.5,2488.4,0.55]
[1747517637670,4.01839876,2488.6,2488.4,0.55]
[1747517637824,4.01826418,2488.7,2488.4,0.55]
[1747517638335,0.7527,2488.9,2488.5,0.37954769]
[1747517638531,4.01840128,2488.6,2488.5,0.37954769]
[1747517646367,4.77220128,2488.6,2488.5,0.37954769]
[1747517646564,7.14643814,2488.6,2488.5,0.37954769]
[1747517649298,4.77220128,2488.6,2488.5,0.37954769]
[1747517649694,4.01840128,2488.6,2488.5,0.37954769]
[1747517652529,4.01840128,2488.6,2488.5,0.60309059]
[1747517658839,4.01840128,2488.6,2488.5,0.37954769]
[1747517660044,4.83230128,2488.6,2488.5,0.37954769]
[1747517660352,7.45528232,2488.6,2488.5,0.37954769]
[1747517662109,17.88362414,2488.6,2488.5,0.37954769]
[1747517662510,4.01864651,2488.4,2488.3,0.47626172]
[1747517662831,4.83254651,2488.4,2488.3,0.47626172]
[1747517663753,15.26088833,2488.4,2488.3,0.47626172]
[1747517664042,17.85296742,2488.4,2488.3,0.38170225]
[1747517666866,17.85296742,2488.4,2487.9,0.47626172]
[1747517666867,4.01913106,2488.1,2487.9,0.47626172]
[1747517667048,4.0192926,2488.0,2487.9,0.47626172]
[1747517667561,4.0192926,2488.0,2487.9,0.69970768]
[1747517668066,4.0192926,2488.0,2487.9,1.08105601]
[1747517669968,4.0192926,2488.0,2487.9,0.85761005]
[1747517670268,4.0192926,2488.0,2487.9,0.38134833]
[1747517680974,4.0196793,2487.8,2487.5,0.8135]
[1747517681181,4.01956266,2487.9,2487.6,0.91974945]
[1747517681382,4.01956266,2487.9,2487.6,0.60485879]
[1747517681765,4.01956266,2487.9,2487.6,0.22347592]
[1747517681972,4.01956266,2487.9,2487.7,0.22347592]
[1747517682454,4.01956266,2487.9,2487.8,0.22347592]
[1747517685584,4.01961701,2487.8,2487.5,0.8135]
[1747517685782,4.01961701,2487.8,2487.6,0.53836744]
[1747517691573,4.01964068,2487.8,2487.6,0.53836744]
[1747517692067,4.01964068,2487.8,2487.7,0.22392646]
[1747517692472,4.01964068,2487.8,2487.6,0.53836744]
[1747517692976,4.01964068,2487.8,2487.7,0.38201644]
[1747517693181,4.01964068,2487.8,2487.7,0.606021]
[1747517693358,4.01964068,2487.8,2487.7,0.38201644]
[1747517693559,4.01964068,2487.8,2487.7,0.606021]
[1747517693892,4.01964068,2487.8,2487.7,0.38201644]
[1747517696485,4.01964068,2487.8,2487.7,1.01871051]
[1747517707218,4.01964068,2487.8,2487.5,0.8135]
[1747517707403,4.01964068,2487.8,2487.6,0.53837515]
[1747517708203,4.01964068,2487.8,2487.7,1.01982813]
[1747517717322,4.0195527,2487.9,2487.7,0.63739258]
[1747517717534,4.0195527,2487.9,2487.5,0.8135]
[1747517717836,4.01961935,2487.8,2487.5,0.8135]
[1747517718039,4.01961935,2487.8,2487.5,1.75389864]
[1747517718235,4.01961935,2487.8,2487.6,0.38253699]
[1747517720050,4.01961935,2487.8,2487.7,1.0200988]
[1747517721155,4.01947336,2487.9,2487.7,1.0200988]
[1747517721355,4.01961572,2487.8,2487.7,1.0200988]
[1747517722657,4.01961572,2487.8,2487.5,1.75389864]
[1747517727381,4.01959118,2487.9,2487.5,1.75389864]
[1747517728958,4.01963018,2487.8,2487.5,1.75389864]
[1747517730657,4.01952179,2487.9,2487.5,5.77396897]
[1747517730847,4.01952179,2487.9,2487.6,0.55]
[1747517731048,4.01925628,2488.1,2487.8,0.55]
[1747517731049,14.93,2488.1,2487.8,0.55]
[1747517732081,7.465,2488.1,2488.0,0.55]
[1747517732372,7.465,2488.1,2488.0,5.3820926]
[1747517732674,18.94756936,2488.5,2488.0,6.32221998]
[1747517732849,14.467,2488.6,2488.2,4.01895758]
[1747517733033,4.01840825,2488.6,2488.1,0.55]
[1747517733238,4.01818544,2488.7,2488.2,4.01883356]
[1747517733675,4.01834578,2488.6,2488.1,4.56905085]
[1747517733986,4.01834578,2488.6,2488.2,0.94010901]
[1747517734919,4.0182564,2488.7,2488.2,4.95903152]
[1747517735051,4.01834034,2488.6,2488.2,4.95903152]
[1747517736693,4.01823336,2488.7,2488.3,1.3532]
[1747517737587,4.01841293,2488.6,2488.3,1.3532]
[1747517737750,4.01841293,2488.6,2488.3,0.55]
[1747517739107,4.0182428,2488.7,2488.3,1.18123858]
[1747517739466,4.01836558,2488.6,2488.3,1.18123858]
[1747517739769,4.01833602,2488.6,2488.3,1.18123858]
[1747517740599,4.01825743,2488.7,2488.3,1.18123858]
[1747517740971,4.01832482,2488.6,2488.3,1.18123858]
[1747517742578,11.48019784,2488.7,2488.3,1.18123858]
[1747517743504,11.48019784,2488.7,2488.4,0.7598]
[1747517744621,4.01833529,2488.6,2488.4,0.7598]
[1747517745669,11.48025345,2488.7,2488.4,0.7598]
[1747517747490,4.01825345,2488.7,2488.4,0.7598]
[1747517747690,11.47925345,2488.7,2488.4,0.7598]
[1747517747903,4.01832968,2488.6,2488.4,0.7598]
[1747517748317,4.01800435,2488.8,2488.5,0.55]
[1747517748523,11.48200435,2488.8,2488.5,0.55]
[1747517749950,4.01816747,2488.7,2488.5,0.55]
[1747517750123,11.48205801,2488.8,2488.5,0.55]
[1747517750428,4.01805801,2488.8,2488.6,0.38253752]
[1747517750607,11.48105801,2488.8,2488.6,0.38253752]
[1747517751595,19.48105801,2488.8,2488.7,0.38253752]
[1747517753427,11.48105801,2488.8,2488.7,0.38253752]
[1747517753728,7.463,2488.8,2488.7,0.38253752]
[1747517754321,12.01761186,2489.1,2488.8,0.55]
[1747517754521,8.0,2489.1,2488.8,1.18013787]
[1747517754725,12.01752131,2489.1,2488.8,1.18013787]
[1747517755033,4.01752131,2489.1,2488.8,0.55]
[1747517755233,14.922,2489.2,2488.8,4.5679322]
[1747517755426,14.922,2489.2,2488.8,5.04394786]
[1747517755625,14.922,2489.2,2488.9,0.38253752]
[1747517756717,18.48327936,2489.3,2489.0,0.38253752]
[1747517756910,7.463,2489.2,2489.0,0.38253752]
[1747517757111,11.48035965,2489.2,2489.0,0.38253752]
[1747517757642,7.463,2489.2,2489.0,0.38253752]
[1747517758126,7.463,2489.2,2489.1,0.38253752]
[1747517759153,14.921,2489.2,2489.1,0.38253752]
[1747517759448,18.93835497,2489.2,2489.1,0.38253752]
[1747517759750,14.921,2489.2,2489.1,0.38253752]
[1747517760460,29.382,2489.3,2489.1,0.38253752]
[1747517760655,33.39922033,2489.3,2489.1,0.38253752]
[1747517761343,33.39922033,2489.3,2489.2,0.38253752]
[1747517762256,21.924,2489.3,2489.2,0.38253752]
[1747517762560,29.381,2489.3,2489.2,0.38253752]
[1747517763041,33.39819358,2489.3,2489.2,0.38253752]
[1747517763212,29.381,2489.3,2489.2,0.38253752]
[1747517763646,33.39819358,2489.3,2489.2,0.38253752]
[1747517764361,21.924,2489.3,2489.2,0.93253752]
[1747517764652,7.458,2489.3,2489.2,0.93253752]
[1747517764819,7.458,2489.3,2489.2,1.55700258]
[1747517765959,7.458,2489.3,2489.2,5.57435755]
[1747517766241,18.92983725,2489.6,2489.3,0.55]
[1747517766622,0.761,2489.7,2489.3,5.37271061]
[1747517766838,7.457,2489.6,2489.3,1.3556]
[1747517767143,0.761,2489.9,2489.5,0.55]
[1747517767369,14.913,2489.9,2489.6,4.8222561]
[1747517767513,7.457,2489.9,2489.7,0.55]
[1747517768018,7.457,2489.9,2489.7,0.93253752]
[1747517768217,7.457,2489.9,2489.7,5.57209427]
[1747517768522,7.457,2489.9,2489.7,5.57215019]
[1747517768723,0.761,2490.2,2489.7,5.57215019]
[1747517769024,8.761,2490.2,2489.7,5.57215019]
[1747517769223,7.456,2490.3,2489.7,1.55563079]
[1747517769427,14.911,2490.3,2489.9,4.56621308]
[1747517769828,14.911,2490.3,2490.0,4.016058]
[1747517770023,14.911,2490.3,2490.0,4.39859552]
[1747517770328,14.911,2490.3,2490.0,0.38253752]
[1747517770529,14.911,2490.3,2490.0,4.3984916]
[1747517770730,14.911,2490.3,2490.0,5.34257715]
[1747517771433,14.911,2490.3,2490.1,0.38253752]
[1747517772350,0.7714,2490.4,2490.1,0.38253752]
[1747517772551,8.2274,2490.4,2490.1,0.38253752]
[1747517773051,12.2428381,2490.4,2490.1,0.38253752]
[1747517773261,12.2428381,2490.4,2490.0,0.94408555]
[1747517773760,11.4714381,2490.4,2490.0,0.94408555]
[1747517774260,7.456,2490.4,2490.1,0.63232441]
[1747517774459,7.456,2490.4,2490.1,4.01582421]
[1747517775265,7.456,2490.4,2490.0,4.01590761]
[1747517775876,7.456,2490.4,2489.9,1.363]
[1747517776176,7.456,2490.4,2490.1,0.37899721]
[1747517776474,11.47142932,2490.4,2490.1,0.37899721]
[1747517776963,7.456,2490.4,2490.1,4.39482418]
[1747517777162,7.456,2490.4,2490.1,0.37899721]
[1747517777861,7.456,2490.4,2490.0,4.01599604]
[1747517778067,7.456,2490.4,2490.0,4.98544175]
[1747517778966,0.7714,2490.6,2490.0,4.98543793]
[1747517779169,14.907,2490.5,2490.1,4.56582388]
[1747517779379,14.907,2490.5,2490.2,4.01571302]
[1747517779550,14.907,2490.5,2490.3,4.01549182]
[1747517779748,14.907,2490.5,2490.2,4.0157417]
[1747517779954,21.914,2490.7,2490.4,0.55]
[1747517780173,14.459,2490.7,2490.5,4.01514885]
[1747517780348,21.913,2490.7,2490.5,4.01514885]
[1747517780681,14.459,2490.7,2490.5,4.01514885]
[1747517780857,14.459,2490.7,2490.5,4.91885414]
[1747517781267,0.7714,2491.0,2490.5,4.91885414]
[1747517781268,4.78593247,2491.0,2490.5,4.91885414]
[1747517781468,7.454,2490.9,2490.5,5.73185414]
[1747517781781,4.78565934,2491.2,2490.7,4.01485646]
[1747517781947,4.78565934,2491.2,2490.9,0.55]
[1747517781948,7.454,2491.1,2490.9,0.55]
[1747517782678,4.01403301,2491.3,2490.9,0.55]
[1747517782848,26.69427248,2491.4,2490.9,4.56460913]
[1747517783176,26.69427248,2491.4,2490.9,0.55]
[1747517783367,4.01422198,2491.2,2490.9,1.13341921]
[1747517784077,4.01407139,2491.3,2490.9,1.13341921]
[1747517784246,4.01421854,2491.2,2490.9,1.13341921]
[1747517784447,4.01407139,2491.3,2490.9,1.13341921]
[1747517785980,34.14622322,2491.4,2490.9,1.13341921]
[1747517785981,14.455,2491.4,2491.0,4.78557171]
[1747517786185,7.453,2491.5,2491.1,5.15608839]
[1747517786480,7.453,2491.5,2491.2,4.01411868]
[1747517786687,11.46665112,2491.5,2491.1,5.15611055]
[1747517786978,11.46665112,2491.5,2491.1,1.14189909]
[1747517787180,4.01339121,2491.7,2491.3,0.55]
[1747517787381,4.80713844,2491.8,2491.3,1.59914086]
[1747517787553,11.46634479,2491.7,2491.3,1.59914086]
[1747517787973,4.01354486,2491.6,2491.3,1.59914086]
[1747517788202,11.46634479,2491.7,2490.9,0.7712]
[1747517788203,7.453,2491.7,2490.9,0.7712]
[1747517788482,4.01383116,2491.4,2491.0,0.55]
[1747517788783,7.453,2491.7,2490.9,0.47601566]
[1747517788784,2.41817986,2491.6,2490.9,0.47601566]
[1747517788970,4.01438052,2491.1,2490.9,0.47601566]
[1747517789177,4.01420592,2491.2,2491.0,0.55]
[1747517789387,4.01420592,2491.2,2491.1,0.37779971]
[1747517790679,7.449,2491.3,2491.1,0.37779971]
[1747517790886,4.01412973,2491.2,2491.1,0.37779971]
[1747517791808,4.84162973,2491.2,2491.1,0.37779971]
[1747517792011,7.21699123,2491.2,2491.1,0.37779971]
[1747517792202,7.21699123,2491.2,2490.7,0.47601566]
[1747517792203,4.01447083,2491.0,2490.7,0.47601566]
[1747517792711,4.01438446,2491.1,2490.7,0.47601566]
[1747517792882,4.01453049,2491.0,2490.7,0.47601566]
[1747517794217,4.01453049,2491.0,2490.6,0.7712]
[1747517794218,4.01453049,2491.0,2490.8,0.37823518]
[1747517795913,4.01453049,2491.0,2490.9,0.37823518]
[1747517800517,4.90016347,2491.0,2490.9,0.37823518]
[1747517800817,13.69846347,2491.0,2490.9,0.37823518]
[1747517801423,4.01493556,2490.7,2490.6,0.47601566]
[1747517801720,18.90993556,2490.7,2490.6,0.47601566]
[1747517803236,4.01509676,2490.6,2490.5,0.47601566]
[1747517804308,4.01509676,2490.6,2490.5,0.85644687]
[1747517808388,4.01509676,2490.6,2490.5,1.07959689]
[1747517810998,6.30760065,2490.6,2490.5,1.07959689]
[1747517811419,7.08000065,2490.6,2490.5,0.85644687]
[1747517811632,17.49818051,2490.6,2490.5,0.85644687]
[1747517812521,27.54818051,2490.6,2490.5,0.85644687]
[1747517813317,27.54818051,2490.6,2490.5,0.38043121]
[1747517813627,4.01654817,2489.7,2489.6,0.47601566]
[1747517814001,18.91454817,2489.7,2489.6,0.47601566]
[1747517814793,18.91454817,2489.7,2489.6,0.85706096]
[1747517816031,18.91454817,2489.7,2489.6,0.3810453]
[1747517819936,4.0169994,2489.5,2489.2,0.47601566]
[1747517820101,4.01711671,2489.4,2489.2,0.47601566]
[1747517822133,4.01711671,2489.4,2489.3,0.38054412]
[1747517825251,4.01735497,2489.2,2489.1,0.55]
[1747517826846,4.01725708,2489.3,2489.1,0.55]
[1747517827246,4.01725708,2489.3,2489.2,0.38027051]
[1747517828861,7.45,2489.9,2489.3,1.3317]
[1747517829038,14.899,2489.9,2489.5,0.55]
[1747517829622,4.01639302,2489.8,2489.5,0.55]
[1747517829949,18.91531012,2489.9,2489.6,0.8042]
[1747517830568,4.01640484,2489.8,2489.6,0.8042]
[1747517830853,18.91529973,2489.9,2489.6,0.8042]
[1747517831560,14.899,2489.9,2489.6,0.8042]
[1747517831923,4.01647245,2489.8,2489.6,0.8042]
[1747517832134,14.899,2489.9,2489.6,0.8042]
[1747517832520,4.01622555,2489.9,2489.7,0.38062288]
[1747517832720,11.46538685,2489.8,2489.7,0.93062288]
[1747517833245,7.449,2489.8,2489.7,0.93062288]
[1747517833821,11.46538685,2489.8,2489.7,0.38062288]
[1747517834028,13.75853585,2489.8,2489.7,0.38062288]
[1747517834717,21.75853585,2489.8,2489.7,0.38062288]
[1747517835466,4.01703221,2489.4,2489.2,1.26621566]
[1747517835672,11.46619358,2489.3,2489.2,0.47601566]
[1747517836391,19.46619358,2489.3,2489.2,0.47601566]
[1747517836523,21.55937986,2489.3,2489.2,0.47601566]
[1747517836858,38.43455972,2489.3,2489.2,0.47601566]
[1747517837223,48.48455972,2489.3,2489.2,0.47601566]
[1747517838960,48.78446209,2489.3,2489.2,0.47601566]
[1747517839354,4.01848503,2488.5,2488.4,0.38191552]
[1747517839557,19.72928503,2488.5,2488.4,0.38191552]
[1747517839757,20.61491801,2488.5,2488.4,0.38191552]
[1747517839959,28.61491801,2488.5,2488.4,0.38191552]
[1747517840863,4.01880802,2488.3,2488.2,0.47601566]
[1747517841245,18.91980802,2488.3,2488.2,0.47601566]
[1747517842340,4.01896953,2488.2,2487.8,0.47601566]
[1747517842563,4.01945196,2488.0,2487.8,0.47601566]
[1747517842768,14.901,2488.3,2487.8,0.47601566]
[1747517842769,4.01945415,2487.9,2487.8,0.47601566]
[1747517842928,4.01945415,2487.9,2487.8,0.69988242]
[1747517843438,4.01936747,2488.0,2487.8,0.69988242]
[1747517843629,4.01936747,2488.0,2487.9,0.38189992]
[1747517849543,13.61841856,2488.0,2487.9,0.38189992]
[1747517851361,4.01964426,2487.8,2487.1,1.30591566]
[1747517851567,4.02044965,2487.3,2487.1,1.30591566]
[1747517851767,7.46,2487.2,2487.1,1.85591566]
[1747517851965,14.921,2487.2,2487.1,1.85591566]
[1747517853065,14.921,2487.2,2487.1,2.23697227]
[1747517854773,14.921,2487.2,2487.1,1.76095661]
[1747517854980,18.94158539,2487.2,2487.1,0.93105661]
[1747517855480,14.921,2487.2,2487.1,0.93105661]
[1747517855794,14.921,2487.2,2487.1,0.38105661]
[1747517857512,20.83573435,2487.2,2487.1,0.38105661]
[1747517857995,13.37573435,2487.2,2487.1,0.38105661]
[1747517858149,18.94558539,2487.2,2487.1,0.38105661]
[1747517858896,4.02074705,2487.1,2487.0,0.47601566]
[1747517859263,14.925,2487.2,2487.0,0.47601566]
[1747517859607,4.02074705,2487.1,2487.0,0.47601566]
[1747517860501,4.02090872,2487.0,2486.9,0.38084179]
[1747517865276,4.02090872,2487.0,2486.9,0.85685745]
[1747517866126,4.02090872,2487.0,2486.9,1.08087322]
[1747517866643,4.02090872,2487.0,2486.9,0.85685745]